fUST/lending_fUST_20250831
["ID","MTS","AMOUNT","RATE_DAILY","PERIOD"]
[382491271,1756647047620,-923.92,0.00017775,2]
[382491273,1756647047629,-555.84,0.00017775,2]
[382491275,1756647047639,-1000.0,0.00017775,2]
[382491277,1756647047648,-534.67,0.00017775,2]
[382491279,1756647047658,-510.7510522,0.00017775,2]
[382491281,1756647047667,-480.0,0.00017775,2]
[382491283,1756647047677,-480.0,0.00017775,2]
[382491285,1756647047686,-480.0,0.00017775,2]
[382491287,1756647047703,-480.0,0.00017775,2]
[382491289,1756647047713,-480.0,0.00017775,2]
[382491291,1756647047724,-480.0,0.00017775,2]
[382491293,1756647047736,-480.0,0.00017775,2]
[382491295,1756647047745,-410.49221079,0.00017775,2]
[382491296,1756647047755,-151.0,0.00017775,2]
[382491298,1756647047764,-151.0,0.00017775,2]
[382491300,1756647047773,-159.226158,0.00017775,2]
[382491303,1756647047783,-480.0,0.00017775,2]
[382491305,1756647047793,-480.0,0.00017775,2]
[382491307,1756647047803,-151.0,0.00017775,2]
[382491308,1756647047812,-480.0,0.00017775,2]
[382491310,1756647047821,-480.0,0.00017775,2]
[382491313,1756647047831,-770.34,0.00017775,2]
[382491315,1756647047842,-480.0,0.00017775,2]
[382491317,1756647047851,-480.0,0.00017775,2]
[382491319,1756647047861,-674.02,0.00017775,2]
[382491321,1756647047872,-500.0,0.00017775,2]
[382491323,1756647047888,-480.0,0.00017775,2]
[382491325,1756647047898,-480.0,0.00017775,2]
[382491327,1756647047911,-481.78518685,0.00017775,2]
[382491329,1756647047920,-586.76,0.00017775,2]
[382491331,1756647047929,-1129.79,0.00017775,2]
[382491333,1756647047938,-287.782845,0.00017775,2]
[382491335,1756647047948,-480.0,0.00017775,2]
[382491337,1756647047957,-2778.09,0.00017775,2]
[382491339,1756647047966,-480.0,0.00017775,2]
[382491341,1756647047976,-789.46,0.00017775,2]
[382491344,1756647047986,-1665.01,0.00017775,2]
[382491346,1756647047996,-480.0,0.00017775,2]
[382491348,1756647048005,-421.55447545,0.00017775,2]
[382491350,1756647048015,-151.0,0.00017775,2]
[382491352,1756647048024,-297.60048262,0.00017775,2]
[382491354,1756647048034,-151.0,0.00017775,2]
[382491356,1756647048044,-1587.95,0.00017775,2]
[382491358,1756647048053,-684.59,0.00017775,2]
[382491360,1756647048063,-274.17,0.00017775,2]
[382491362,1756647048072,-930.35,0.00017775,2]
[382491364,1756647048081,-151.0,0.00017775,2]
[382491366,1756647048090,-151.0,0.00017775,2]
[382491368,1756647048100,-480.0,0.00017775,2]
[382491370,1756647048110,-1853.64,0.00017775,2]
[382491372,1756647048119,-151.0,0.00017775,2]
[382491374,1756647048128,-151.0,0.00017775,2]
[382491376,1756647048138,-151.0,0.00017775,2]
[382491378,1756647048147,-480.0,0.00017775,2]
[382491380,1756647048157,-151.0,0.00017775,2]
[382491382,1756647048166,-1059.09,0.00017775,2]
[382491384,1756647048176,-480.0,0.00017775,2]
[382491386,1756647048185,-151.0,0.00017775,2]
[382491388,1756647048195,-151.0,0.00017775,2]
[382491390,1756647048204,-759.74,0.00017775,2]
[382491392,1756647048214,-480.0,0.00017775,2]
[382491394,1756647048224,-151.0,0.00017775,2]
[382491396,1756647048233,-480.0,0.00017775,2]
[382491398,1756647048242,-1550.77,0.00017775,2]
[382491400,1756647048252,-165.925572,0.00017775,2]
[382491402,1756647048262,-1492.24,0.00017775,2]
[382491404,1756647048272,-480.0,0.00017775,2]
[382491406,1756647048281,-480.0,0.00017775,2]
[382491408,1756647048294,-151.0,0.00017775,2]
[382491410,1756647048303,-480.0,0.00017775,2]
[382491412,1756647048313,-480.0,0.00017775,2]
[382491414,1756647048322,-1733.66,0.00017775,2]
[382491416,1756647048332,-151.0,0.00017775,2]
[382491418,1756647048342,-480.0,0.00017775,2]
[382491420,1756647048352,-480.0,0.00017775,2]
[382491422,1756647048361,-480.0,0.00017775,2]
[382491424,1756647048371,-480.0,0.00017775,2]
[382491426,1756647048380,-836.71,0.00017775,2]
[382491428,1756647048390,-480.0,0.00017775,2]
[382491430,1756647048400,-151.0,0.00017775,2]
[382491432,1756647048411,-480.0,0.00017775,2]
[382491434,1756647048421,-480.0,0.00017775,2]
[382491436,1756647048431,-480.0,0.00017775,2]
[382491438,1756647048440,-480.0,0.00017775,2]
[382491440,1756647048449,-480.0,0.00017775,2]
[382491442,1756647048459,-481.29,0.00017775,2]
[382491444,1756647048468,-175.10694815,0.00017775,2]
[382491446,1756647048478,-151.0,0.00017775,2]
[382491448,1756647048489,-151.0,0.00017775,2]
[382491450,1756647048503,-572.28,0.00017775,2]
[382491452,1756647048513,-154.702727,0.00017775,2]
[382491454,1756647048523,-480.0,0.00017775,2]
[382491457,1756647048532,-1223.71,0.00017775,2]
[382491458,1756647048543,-572.76,0.00017775,2]
[382491461,1756647048554,-480.0,0.00017775,2]
[382491463,1756647048563,-607.24,0.00017775,2]
[382491465,1756647048573,-480.0,0.00017775,2]
[382491467,1756647048584,-571.99,0.00017775,2]
[382491469,1756647048594,-270.445229,0.00017775,2]
[382491471,1756647048603,-151.0,0.00017775,2]
[382491472,1756647048613,-480.0,0.00017775,2]
[382491474,1756647048622,-324.0913876,0.00017775,2]
[382491476,1756647048632,-519.29,0.00017775,2]
[382491478,1756647048642,-581.67,0.00017775,2]
[382491480,1756647048651,-880.48,0.00017775,2]
[382491483,1756647048662,-1753.41,0.00017775,2]
[382491484,1756647048671,-675.39,0.00017775,2]
[382491486,1756647048681,-480.0,0.00017775,2]
[382491488,1756647048691,-151.0,0.00017775,2]
[382491490,1756647048700,-857.46,0.00017775,2]
[382491492,1756647048710,-480.0,0.00017775,2]
[382491494,1756647048720,-881.51,0.00017775,2]
[382491496,1756647048730,-1003.54527382,0.00017775,2]
[382491498,1756647048740,-151.0,0.00017775,2]
[382491500,1756647048749,-480.0,0.00017775,2]
[382491502,1756647048760,-480.0,0.00017775,2]
[382491504,1756647048769,-480.0,0.00017775,2]
[382491506,1756647048778,-480.0,0.00017775,2]
[382491508,1756647048787,-480.0,0.00017775,2]
[382491510,1756647048797,-480.0,0.00017775,2]
[382491512,1756647048806,-480.0,0.00017775,2]
[382491514,1756647048815,-516.54,0.00017775,2]
[382491516,1756647048824,-480.0,0.00017775,2]
[382491518,1756647048833,-480.0,0.00017775,2]
[382491520,1756647048844,-480.0,0.00017775,2]
[382491522,1756647048853,-867.44,0.00017775,2]
[382491524,1756647048863,-537.61,0.00017775,2]
[382491526,1756647048872,-480.0,0.00017775,2]
[382491528,1756647048882,-480.0,0.00017775,2]
[382491530,1756647048891,-480.0,0.00017775,2]
[382491532,1756647048901,-272.048462,0.00017775,2]
[382491534,1756647048911,-480.77248224,0.00017775,2]
[382491536,1756647048921,-503.8,0.00017775,2]
[382491538,1756647048930,-500.73,0.00017775,2]
[382491540,1756647048938,-1114.23,0.00017775,2]
[382491541,1756647048948,-681.14,0.00017775,2]
[382491543,1756647048958,-480.0,0.00017775,2]
[382491546,1756647048968,-480.0,0.00017775,2]
[382491548,1756647048978,-480.0,0.00017775,2]
[382491550,1756647048987,-977.55,0.00017775,2]
[382491551,1756647048997,-480.0,0.00017775,2]
[382491553,1756647049007,-480.0,0.00017775,2]
[382491555,1756647049016,-500.0,0.00017775,2]
[382491557,1756647049025,-480.0,0.00017775,2]
[382491573,1756647049173,-480.0,0.00017775,2]
[382491575,1756647049183,-480.0,0.00017775,2]
[382491577,1756647049192,-1399.32,0.00017775,2]
[382491579,1756647049202,-480.0,0.00017775,2]
[382491581,1756647049212,-1124.12,0.00017775,2]
[382491583,1756647049221,-480.0,0.00017775,2]
[382491585,1756647049231,-580.87,0.00017775,2]
[382491587,1756647049241,-480.0,0.00017775,2]
[382491589,1756647049251,-1006.32,0.00017775,2]
[382491591,1756647049261,-480.0,0.00017775,2]
[382491593,1756647049271,-480.0,0.00017775,2]
[382491594,1756647049280,-1317.7,0.00017775,2]
[382491596,1756647049290,-481.03866286,0.00017775,2]
[382491598,1756647049300,-480.0,0.00017775,2]
[382491600,1756647049310,-480.0,0.00017775,2]
[382491602,1756647049319,-872.85,0.00017775,2]
[382491604,1756647049330,-480.0,0.00017775,2]
[382491606,1756647049339,-480.0,0.00017775,2]
[382491608,1756647049350,-480.0,0.00017775,2]
[382491610,1756647049360,-480.0,0.00017775,2]
[382491612,1756647049370,-480.0,0.00017775,2]
[382491614,1756647049380,-480.0,0.00017775,2]
[382491616,1756647049390,-603.0,0.00017775,2]
[382491618,1756647049400,-480.0,0.00017775,2]
[382491620,1756647049410,-480.0,0.00017775,2]
[382491622,1756647049419,-480.0,0.00017775,2]
[382491624,1756647049429,-480.0,0.00017775,2]
[382491626,1756647049438,-1284.0,0.00017775,2]
[382491628,1756647049447,-480.0,0.00017775,2]
[382491630,1756647049457,-991.42,0.00017775,2]
[382491632,1756647049467,-875.05,0.00017775,2]
[382491634,1756647049476,-584.21,0.00017775,2]
[382491636,1756647049486,-480.0,0.00017775,2]
[382491638,1756647049499,-754.46,0.00017775,2]
[382491640,1756647049508,-480.0,0.00017775,2]
[382491642,1756647049518,-504.7,0.00017775,2]
[382491644,1756647049527,-1216.24,0.00017775,2]
[382491646,1756647049537,-480.0,0.00017775,2]
[382491648,1756647049547,-480.0,0.00017775,2]
[382491650,1756647049557,-605.33,0.00017775,2]
[382491652,1756647049567,-921.53,0.00017775,2]
[382491654,1756647049576,-480.0,0.00017775,2]
[382491656,1756647049586,-151.0,0.00017775,2]
[382491657,1756647049596,-151.0,0.00017775,2]
[382491659,1756647049606,-151.0,0.00017775,2]
[382491661,1756647049616,-480.0,0.00017775,2]
[382491663,1756647049626,-480.0,0.00017775,2]
[382491665,1756647049635,-618.42,0.00017775,2]
[382491667,1756647049644,-995.45,0.00017775,2]
[382491669,1756647049654,-496.12,0.00017775,2]
[382491671,1756647049663,-605.84,0.00017775,2]
[382491673,1756647049673,-480.0,0.00017775,2]
[382491675,1756647049683,-480.0,0.00017775,2]
[382491677,1756647049692,-480.0,0.00017775,2]
[382491679,1756647049702,-598.65,0.00017775,2]
[382491681,1756647049711,-480.0,0.00017775,2]
[382491683,1756647049721,-151.943352,0.00017775,2]
[382491685,1756647049730,-151.0,0.00017775,2]
[382491687,1756647049739,-151.0,0.00017775,2]
[382491689,1756647049749,-402.698755,0.00017775,2]
[382491691,1756647049758,-151.0,0.00017775,2]
[382491692,1756647049768,-402.698755,0.00017775,2]
[382491694,1756647049778,-151.0,0.00017775,2]
[382491696,1756647049788,-402.698755,0.00017775,2]
[382491698,1756647049798,-902.36,0.00017775,2]
[382491700,1756647049807,-402.698755,0.00017775,2]
[382491702,1756647049816,-500.0,0.00017775,2]
[382491704,1756647049827,-565.23,0.00017777,2]
[382491706,1756647049836,-522.16,0.00017777,2]
[382491708,1756647049846,-906.01,0.00017777,2]
[382491710,1756647049855,-1167.98,0.00017777,2]
[382491712,1756647049865,-1358.67,0.00017777,2]
[382491714,1756647049874,-480.0,0.00017777,2]
[382491716,1756647049884,-1359.56,0.00017777,2]
[382491718,1756647049893,-656.14,0.00017777,2]
[382491720,1756647049904,-480.0,0.00017777,2]
[382491722,1756647049914,-480.0,0.00017777,2]
[382491724,1756647049923,-501.15,0.00017777,2]
[382491726,1756647049932,-480.0,0.00017777,2]
[382491728,1756647049943,-481.7167146,0.00017777,2]
[382491730,1756647049953,-715.88,0.00017777,2]
[382491732,1756647049962,-480.0,0.00017778,2]
[382491734,1756647049971,-480.0,0.00017778,2]
[382491735,1756647049980,-480.0,0.00017778,2]
[382491737,1756647049990,-599.81,0.00017778,2]
[382491739,1756647049999,-480.0,0.00017778,2]
[382491741,1756647050009,-595.72,0.00017778,2]
[382491743,1756647050018,-567.37918417,0.00017778,2]
[382491745,1756647050027,-1628.45,0.00017778,2]
[382491747,1756647050036,-480.0,0.00017778,2]
[382491749,1756647050047,-480.0,0.00017778,2]
[382491751,1756647050056,-481.39767338,0.00017778,2]
[382491753,1756647050066,-591.58,0.00017778,2]
[382491755,1756647050075,-910.94,0.00017778,2]
[382491757,1756647050084,-480.0,0.00017778,2]
[382491759,1756647050094,-480.0,0.00017778,2]
[382491761,1756647050104,-480.0,0.00017778,2]
[382491763,1756647050113,-480.0,0.00017778,2]
[382491765,1756647050123,-151.0,0.00017778,2]
[382491767,1756647050133,-705.65,0.00017778,2]
[382491769,1756647050142,-480.0,0.00017778,2]
[382491771,1756647050151,-480.0,0.00017778,2]
[382491773,1756647050161,-480.0,0.00017778,2]
[382491775,1756647050171,-480.0,0.00017778,2]
[382491777,1756647050180,-487.56151785,0.00017778,2]
[382491779,1756647050191,-762.83,0.00017778,2]
[382491781,1756647050200,-642.22,0.00017778,2]
[382491783,1756647050210,-480.0,0.00017778,2]
[382491785,1756647050220,-574.82,0.00017778,2]
[382491787,1756647050229,-160.424535,0.00017778,2]
[382491789,1756647050239,-151.0,0.00017778,2]
[382491790,1756647050249,-167.076088,0.00017778,2]
[382491792,1756647050258,-151.0,0.00017778,2]
[382491794,1756647050267,-151.0,0.00017778,2]
[382491796,1756647050277,-151.0,0.00017778,2]
[382491798,1756647050286,-151.0,0.00017778,2]
[382491800,1756647050295,-151.0,0.00017778,2]
[382491802,1756647050305,-151.0,0.00017778,2]
[382491804,1756647050315,-151.0,0.00017778,2]
[382491806,1756647050325,-151.0,0.00017778,2]
[382491808,1756647050335,-151.0,0.00017778,2]
[382491810,1756647050344,-151.0,0.000178,2]
[382491812,1756647050355,-151.0,0.000178,2]
[382491814,1756647050364,-168.0,0.00017882,2]
[382491816,1756647050374,-151.0,0.00017882,2]
[382491818,1756647050384,-266.07364189,0.00017882,2]
[382491820,1756647050393,-151.0,0.00017882,2]
[382491822,1756647050403,-151.0,0.00017882,2]
[382491824,1756647050413,-151.0,0.00017882,2]
[382491826,1756647050423,-4356.76341376,0.00017883,2]
[382491828,1756647050432,-1230.0,0.00017886,2]
[382491830,1756647050442,-5000.0,0.00017891,2]
[382491832,1756647050452,-168.0,0.00017892,2]
[382491834,1756647050462,-151.343345,0.00017892,2]
[382491836,1756647050472,-151.0,0.00017892,2]
[382491838,1756647050481,-151.0,0.00017892,2]
[382491840,1756647050493,-151.0,0.00017892,2]
[382491842,1756647050505,-151.0,0.00017892,2]
[382491844,1756647050515,-151.0,0.00017892,2]
[382491846,1756647050524,-151.0,0.00017892,2]
[382491848,1756647050535,-151.158634,0.00017892,2]
[382491849,1756647050545,-151.55384,0.00017892,2]
[382491851,1756647050555,-151.0,0.00017892,2]
[382491853,1756647050564,-151.0,0.00017892,2]
[382491855,1756647050575,-185.876676,0.00017892,2]
[382491857,1756647050585,-151.0,0.00017892,2]
[382491859,1756647050594,-185.876676,0.00017892,2]
[382491861,1756647050604,-185.876676,0.00017892,2]
[382491863,1756647050614,-184.038744,0.00017892,2]
[382491865,1756647050623,-185.876676,0.00017892,2]
[382491867,1756647050632,-151.0,0.00017892,2]
[382491869,1756647050642,-151.0,0.00017892,2]
[382491871,1756647050651,-151.0,0.000179,2]
[382491873,1756647050662,-151.0,0.000179,2]
[382491875,1756647050672,-151.0,0.000179,2]
[382491877,1756647050681,-168.0,0.00017914,2]
[382491879,1756647050692,-380.0,0.00017926,2]
[382491881,1756647050703,-151.0,0.00018,2]
[382491883,1756647050712,-156.907314,0.00018,14]
[382491885,1756647050721,-151.0,0.00018,2]
[382491887,1756647050731,-158708.97311038,0.00018,2]
[382491889,1756647050741,-9567.19967618,0.00018,2]
[382491891,1756647050750,-23104.43973852,0.00018,2]
[382491893,1756647050760,-916.14,0.00018,2]
[382491895,1756647050769,-156.167908,0.00018,2]
[382491896,1756647050778,-151.0,0.00018,2]
[382491897,1756647050787,-402.698755,0.00018,2]
[382491898,1756647050796,-178.660336,0.00018,2]
[382491899,1756647050805,-402.698755,0.00018,2]
[382491900,1756647050814,-151.0,0.00018,2]
[382491901,1756647050823,-402.698755,0.00018,2]
[382491902,1756647050832,-402.698755,0.00018,2]
[382491903,1756647050842,-163.37720482,0.00018003,2]
[382491904,1756647050851,-6000.0,0.00018008,2]
[382491905,1756647050860,-151.0,0.00018008,2]
[382491906,1756647050869,-500.0,0.00018014,2]
[382491907,1756647050877,-500.4653867,0.00018014,2]
[382491908,1756647050887,-500.0,0.00018014,2]
[382491909,1756647050895,-500.0,0.00018014,2]
[382491910,1756647050904,-242.0,0.00018017,2]
[382491911,1756647050913,-480.0,0.00018048,2]
[382491912,1756647050922,-1397.52,0.00018048,2]
[382491913,1756647050931,-480.0,0.00018048,2]
[382491914,1756647050940,-543.05484409,0.00018048,2]
[382491915,1756647050948,-480.0,0.00018048,2]
[382491916,1756647050957,-639.49,0.00018048,2]
[382491917,1756647050966,-507.6,0.00018048,2]
[382491918,1756647050975,-480.0,0.00018048,2]
[382491919,1756647050984,-480.0,0.00018048,2]
[382491920,1756647050993,-480.0,0.00018048,2]
[382491921,1756647051002,-480.0,0.00018048,2]
[382491922,1756647051011,-1104.52,0.00018048,2]
[382491923,1756647051020,-151.0,0.00018048,2]
[382491924,1756647051029,-480.0,0.00018048,2]
[382491925,1756647051038,-480.0,0.00018048,2]
[382491926,1756647051047,-480.0,0.00018048,2]
[382491927,1756647051056,-767.06,0.00018048,2]
[382491929,1756647051065,-480.0,0.00018048,2]
[382491930,1756647051073,-480.0,0.00018048,2]
[382491931,1756647051082,-480.0,0.00018048,2]
[382491933,1756647051090,-480.0,0.00018048,2]
[382491935,1756647051100,-480.0,0.00018048,2]
[382491937,1756647051109,-480.0,0.00018048,2]
[382491939,1756647051118,-920.69,0.00018048,2]
[382491941,1756647051127,-822.59,0.00018048,2]
[382491942,1756647051137,-151.0,0.00018048,2]
[382491944,1756647051147,-480.0,0.00018048,2]
[382491946,1756647051156,-587.38,0.00018048,2]
[382491948,1756647051166,-1229.77,0.00018048,2]
[382491950,1756647051175,-526.92,0.00018048,2]
[382491952,1756647051184,-480.0,0.00018048,2]
[382491954,1756647051194,-151.0,0.00018048,2]
[382491956,1756647051203,-992.66,0.00018048,2]
[382491958,1756647051212,-923.58,0.00018048,2]
[382491960,1756647051222,-290.27300873,0.00018048,2]
[382491962,1756647051231,-1103.86,0.00018048,2]
[382491964,1756647051240,-151.0,0.00018048,2]
[382491966,1756647051249,-496.53,0.00018048,2]
[382491968,1756647051259,-480.0,0.00018048,2]
[382491970,1756647051268,-646.75,0.00018048,2]
[382491972,1756647051277,-480.0,0.00018048,2]
[382491974,1756647051287,-1041.77,0.00018048,2]
[382491976,1756647051296,-1171.4,0.00018048,2]
[382491978,1756647051305,-480.0,0.00018048,2]
[382491980,1756647051315,-855.65,0.00018048,2]
[382491982,1756647051324,-778.0,0.00018048,2]
[382491984,1756647051334,-480.0,0.00018048,2]
[382491986,1756647051344,-480.0,0.00018048,2]
[382491988,1756647051354,-480.0,0.00018048,2]
[382491990,1756647051363,-2071.86,0.00018048,2]
[382491992,1756647051372,-184.400329,0.00018048,2]
[382491994,1756647051381,-480.0,0.00018048,2]
[382491996,1756647051391,-151.0,0.00018048,2]
[382491998,1756647051401,-480.0,0.00018048,2]
[382492000,1756647051410,-601.76,0.00018048,2]
[382492002,1756647051419,-480.0,0.00018048,2]
[382492004,1756647051429,-569.85,0.00018048,2]
[382492006,1756647051439,-480.0,0.00018048,2]
[382492008,1756647051448,-723.21,0.00018048,2]
[382492010,1756647051457,-480.0,0.00018048,2]
[382492013,1756647051467,-546.59,0.00018048,2]
[382492014,1756647051477,-1578.77,0.00018048,2]
[382492017,1756647051487,-483.00033591,0.00018048,2]
[382492019,1756647051501,-151.0,0.00018048,2]
[382492020,1756647051512,-151.0,0.00018048,2]
[382492022,1756647051522,-583.68,0.00018048,2]
[382492025,1756647051532,-526.87,0.00018048,2]
[382492027,1756647051541,-480.0,0.00018048,2]
[382492028,1756647051551,-480.0,0.00018048,2]
[382492030,1756647051560,-151.0,0.00018048,2]
[382492033,1756647051570,-551.65,0.00018048,2]
[382492035,1756647051580,-1550.12,0.00018048,2]
[382492050,1756647051721,-151.0,0.00018048,2]
[382492052,1756647051730,-151.0,0.00018048,2]
[382492054,1756647051740,-480.0,0.00018048,2]
[382492056,1756647051749,-480.0,0.00018048,2]
[382492058,1756647051759,-980.61,0.00018048,2]
[382492060,1756647051768,-480.0,0.00018048,2]
[382492062,1756647051777,-480.0,0.00018048,2]
[382492064,1756647051786,-480.0,0.00018048,2]
[382492066,1756647051795,-1562.44,0.00018048,2]
[382492068,1756647051805,-480.0,0.00018048,2]
[382492070,1756647051814,-627.45,0.00018048,2]
[382492072,1756647051823,-480.0,0.00018048,2]
[382492074,1756647051832,-885.22,0.00018048,2]
[382492076,1756647051841,-151.0,0.00018048,2]
[382492078,1756647051851,-151.0,0.00018048,2]
[382492080,1756647051861,-480.0,0.00018048,2]
[382492082,1756647051870,-2638.76,0.00018048,2]
[382492084,1756647051879,-480.0,0.00018048,2]
[382492086,1756647051889,-480.0,0.00018048,2]
[382492088,1756647051898,-480.0,0.00018048,2]
[382492090,1756647051908,-650.9,0.00018048,2]
[382492092,1756647051917,-480.0,0.00018048,2]
[382492094,1756647051926,-151.0,0.00018048,2]
[382492096,1756647051936,-480.0,0.00018048,2]
[382492098,1756647051946,-1949.26,0.00018048,2]
[382492100,1756647051955,-480.0,0.00018048,2]
[382492102,1756647051965,-1282.96,0.00018048,2]
[382492104,1756647051975,-480.0,0.00018048,2]
[382492106,1756647051985,-480.0,0.00018048,2]
[382492108,1756647051994,-480.0,0.00018048,2]
[382492110,1756647052003,-1316.81,0.00018048,2]
[382492112,1756647052012,-480.0,0.00018048,2]
[382492114,1756647052022,-1679.73,0.00018048,2]
[382492116,1756647052031,-480.0,0.00018048,2]
[382492118,1756647052041,-1672.43,0.00018048,2]
[382492120,1756647052049,-534.35,0.00018048,2]
[382492121,1756647052057,-817.56,0.00018048,2]
[382492123,1756647052066,-1739.39,0.00018048,2]
[382492125,1756647052076,-700.55,0.00018048,2]
[382492127,1756647052085,-480.0,0.00018048,2]
[382492129,1756647052094,-1368.71,0.00018048,2]
[382492131,1756647052105,-480.0,0.00018048,2]
[382492133,1756647052114,-480.0,0.00018048,2]
[382492135,1756647052123,-480.0,0.00018048,2]
[382492137,1756647052133,-480.0,0.00018048,2]
[382492139,1756647052143,-506.66,0.00018048,2]
[382492141,1756647052152,-480.0,0.00018048,2]
[382492143,1756647052161,-495.7,0.00018048,2]
[382492145,1756647052171,-506.81,0.00018048,2]
[382492147,1756647052181,-183.82996849,0.00018048,2]
[382492149,1756647052192,-480.0,0.00018048,2]
[382492151,1756647052201,-613.0,0.00018048,2]
[382492153,1756647052210,-480.0,0.00018048,2]
[382492155,1756647052220,-480.0,0.00018048,2]
[382492157,1756647052229,-480.0,0.00018048,2]
[382492159,1756647052238,-852.07,0.00018048,2]
[382492161,1756647052248,-480.0,0.00018048,2]
[382492163,1756647052258,-480.0,0.00018048,2]
[382492165,1756647052268,-400.0,0.00018048,2]
[382492167,1756647052278,-813.4,0.00018048,2]
[382492169,1756647052288,-1394.45,0.00018048,2]
[382492171,1756647052299,-480.0,0.00018048,2]
[382492173,1756647052309,-158.27277284,0.00018048,2]
[382492175,1756647052319,-815.7,0.00018048,2]
[382492177,1756647052329,-665.04,0.00018048,2]
[382492179,1756647052339,-576.54,0.00018048,2]
[382492181,1756647052348,-1639.72,0.00018048,2]
[382492183,1756647052358,-780.26,0.00018048,2]
[382492185,1756647052367,-789.17,0.00018048,2]
[382492187,1756647052376,-480.0,0.00018048,2]
[382492189,1756647052385,-151.0,0.00018048,2]
[382492191,1756647052394,-480.0,0.00018048,2]
[382492193,1756647052403,-480.0,0.00018048,2]
[382492195,1756647052413,-480.0,0.00018048,2]
[382492197,1756647052423,-480.0,0.00018048,2]
[382492199,1756647052433,-491.82,0.00018048,2]
[382492201,1756647052443,-480.0,0.00018048,2]
[382492203,1756647052452,-566.36,0.00018048,2]
[382492205,1756647052462,-3774.76,0.00018048,2]
[382492207,1756647052472,-1414.78,0.00018048,2]
[382492209,1756647052483,-691.26,0.00018048,2]
[382492211,1756647052497,-1344.11,0.00018048,2]
[382492213,1756647052510,-988.41,0.00018048,2]
[382492215,1756647052519,-568.19,0.00018048,2]
[382492217,1756647052529,-1739.22,0.00018048,2]
[382492219,1756647052540,-151.0,0.00018048,2]
[382492221,1756647052550,-480.0,0.00018048,2]
[382492223,1756647052560,-480.0,0.00018048,2]
[382492225,1756647052572,-1231.58,0.00018048,2]
[382492227,1756647052583,-1431.09,0.00018048,2]
[382492229,1756647052592,-763.56,0.00018048,2]
[382492231,1756647052601,-1121.78,0.00018048,2]
[382492233,1756647052611,-436.0650664,0.00018048,2]
[382492235,1756647052620,-480.0,0.00018048,2]
[382492237,1756647052630,-480.0,0.00018048,2]
[382492239,1756647052639,-1501.97,0.00018048,2]
[382492241,1756647052649,-701.5,0.00018048,2]
[382492243,1756647052659,-1504.03,0.00018048,2]
[382492245,1756647052668,-480.0,0.00018048,2]
[382492247,1756647052677,-768.17,0.00018048,2]
[382492249,1756647052687,-1256.06,0.00018048,2]
[382492251,1756647052696,-1006.65,0.00018048,2]
[382492253,1756647052706,-1655.5,0.00018048,2]
[382492255,1756647052715,-974.84,0.00018048,2]